bitfinex/quotes_BTCUSD_20230114
["timestamp","ask_amount","ask_price","bid_price","bid_amount"]
[1673733459680,3.75170713,20909.0,20908.0,1.4762944]
[1673733459932,4.1085308,20909.0,20908.0,1.4762944]
[1673733460683,4.03521028,20909.0,20908.0,1.4762944]
[1673733460932,3.67838661,20909.0,20908.0,1.4762944]
[1673733461457,3.89234202,20909.0,20908.0,1.4762944]
[1673733462432,3.67838661,20909.0,20908.0,1.4762944]
[1673733462682,3.89232152,20909.0,20908.0,1.4762944]
[1673733463767,3.89232152,20909.0,20908.0,1.47607587]
[1673733463935,4.50931245,20909.0,20908.0,1.47607587]
[1673733464200,3.86702386,20909.0,20908.0,1.47607587]
[1673733464431,3.96702386,20909.0,20908.0,1.47607587]
[1673733465451,3.96702386,20909.0,20903.0,0.00713804]
[1673733465452,4.51102148,20909.0,20903.0,0.00713804]
[1673733465694,0.39156787,20904.0,20903.0,0.00713804]
[1673733465959,3.04843407,20904.0,20903.0,0.00713804]
[1673733466199,3.31231322,20904.0,20903.0,0.00713804]
[1673733466687,3.18759171,20904.0,20903.0,0.00713804]
[1673733466943,3.18174171,20904.0,20903.0,0.00713804]
[1673733467191,3.05298384,20904.0,20903.0,0.00813804]
[1673733467436,3.04498384,20904.0,20903.0,0.00713804]
[1673733467690,3.18098384,20904.0,20903.0,0.00713804]
[1673733468720,2.96707204,20904.0,20903.0,0.00713804]
[1673733468976,3.18098384,20904.0,20903.0,0.00713804]
[1673733469223,3.79691265,20904.0,20903.0,0.00713804]
[1673733469475,3.87671658,20904.0,20903.0,0.00713804]
[1673733469993,3.97671658,20904.0,20903.0,0.00713804]
[1673733470247,3.87671658,20904.0,20903.0,0.00713804]
[1673733470492,4.1616366,20904.0,20903.0,0.00713804]
[1673733470977,4.16162218,20904.0,20903.0,0.00713804]
[1673733471237,3.80510251,20904.0,20903.0,0.00713804]
[1673733471737,4.16162218,20904.0,20903.0,4e-08]
[1673733471995,0.1,20903.0,20901.0,0.0324774]
[1673733472262,3.12575811,20902.0,20901.0,0.0324774]
[1673733472508,3.1607333,20902.0,20901.0,0.0324774]
[1673733472754,3.4607333,20902.0,20901.0,0.0324774]
[1673733473513,3.5957333,20902.0,20901.0,0.00719581]
[1673733473812,4.06983547,20902.0,20901.0,0.00719581]
[1673733474079,3.93483547,20902.0,20901.0,0.00719581]
[1673733474577,4.35567228,20902.0,20901.0,0.00719581]
[1673733474854,3.74557011,20902.0,20901.0,0.00719581]
[1673733475112,3.5967333,20902.0,20901.0,0.00719581]
[1673733476160,1.412658,20902.0,20901.0,0.00719581]
[1673733476675,1.092846,20902.0,20901.0,0.00719581]
[1673733477193,0.956846,20902.0,20901.0,0.00719581]
[1673733478166,0.613423,20902.0,20901.0,0.00919581]
[1673733478676,0.135,20902.0,20901.0,0.00919581]
[1673733479693,0.74387924,20902.0,20901.0,0.00919581]
[1673733479951,1.11312274,20902.0,20901.0,0.00919581]
[1673733480206,1.41312274,20902.0,20901.0,0.00919581]
[1673733480470,1.413006,20902.0,20901.0,0.00919581]
[1673733480699,1.41312274,20902.0,20901.0,0.00919581]
[1673733480945,1.47590884,20902.0,20901.0,0.00919581]
[1673733481206,1.79572084,20902.0,20901.0,0.00919581]
[1673733481723,1.91012084,20902.0,20901.0,0.00919581]
[1673733481965,2.51719159,20902.0,20901.0,0.00919581]
[1673733482206,2.7308192,20902.0,20901.0,0.00919581]
[1673733482983,2.99587058,20902.0,20901.0,0.00919581]
[1673733483224,2.66784297,20902.0,20901.0,0.00919581]
[1673733483473,3.29128641,20902.0,20901.0,0.00919581]
[1673733484502,3.1490742,20902.0,20901.0,0.00919581]
[1673733485988,2.51701402,20902.0,20901.0,0.00919581]
[1673733487476,2.25998942,20902.0,20901.0,0.00919581]
[1673733489390,2.26010616,20902.0,20901.0,0.00919581]
[1673733489913,2.73852916,20902.0,20901.0,0.00919581]
[1673733490392,2.88115376,20902.0,20901.0,0.00919581]
[1673733490637,3.33965411,20902.0,20901.0,0.00919581]
[1673733491671,2.88115376,20902.0,20901.0,0.00919581]
[1673733492398,3.0951741,20902.0,20901.0,0.00919581]
[1673733492634,2.9525495,20902.0,20901.0,0.00919581]
[1673733492880,3.23738631,20902.0,20901.0,0.00919581]
[1673733493354,3.23738631,20902.0,20901.0,0.00907827]
[1673733494343,3.02336597,20902.0,20901.0,0.00907827]
[1673733494852,3.23737193,20902.0,20901.0,0.00907827]
[1673733495331,2.95253512,20902.0,20901.0,0.00907827]
[1673733495590,3.09519533,20902.0,20901.0,0.00907827]
[1673733495835,3.09519447,20902.0,20901.0,0.00907827]
[1673733496306,2.95253512,20902.0,20901.0,0.00907827]
[1673733496551,3.23737193,20902.0,20901.0,0.00907827]
[1673733496787,2.95253512,20902.0,20901.0,0.00907827]
[1673733497761,3.23737193,20902.0,20901.0,0.00907827]
[1673733498300,3.37941198,20902.0,20901.0,0.00907827]
[1673733498738,3.35825198,20902.0,20901.0,0.00907827]
[1673733498957,3.37941198,20902.0,20901.0,0.00907827]
[1673733499960,3.09457517,20902.0,20901.0,0.00907827]
[1673733500620,3.38013479,20902.0,20901.0,0.00907827]
[1673733501512,2.9029331,20902.0,20901.0,0.00907827]
[1673733501782,2.54677035,20902.0,20901.0,0.00907827]
[1673733502009,2.22695835,20902.0,20901.0,0.00907827]
[1673733502229,2.54677035,20902.0,20901.0,0.00907827]
[1673733502538,2.90281636,20902.0,20901.0,0.00907827]
[1673733502969,2.58300436,20902.0,20901.0,0.00907827]
[1673733503227,2.90281636,20902.0,20901.0,0.00907827]
[1673733503477,2.58300436,20902.0,20901.0,0.00907827]
[1673733503714,3.46617343,20902.0,20901.0,0.00907827]
[1673733503965,3.11012742,20902.0,20901.0,0.00907827]
[1673733504428,3.53795103,20902.0,20901.0,0.00907827]
[1673733504896,3.65155103,20902.0,20901.0,0.00907827]
[1673733505092,3.65166777,20902.0,20901.0,0.00907827]
[1673733505334,3.27995277,20902.0,20901.0,0.00907827]
[1673733505796,2.85212916,20902.0,20901.0,0.00907827]
[1673733509563,3.28076196,20902.0,20901.0,0.00907827]
[1673733510514,2.98076196,20902.0,20901.0,0.00907827]
[1673733511672,3.28076196,20902.0,20901.0,0.00907827]
[1673733512590,2.85212916,20902.0,20901.0,0.00907827]
[1673733513057,3.28076196,20902.0,20901.0,0.00907827]
[1673733513517,2.85212916,20902.0,20901.0,0.00907827]
[1673733514228,2.74580563,20902.0,20901.0,0.19980422]
[1673733514562,1.85616877,20902.0,20901.0,0.19980422]
[1673733514685,1.85616877,20902.0,20901.0,0.00907827]
[1673733514686,1.11376654,20902.0,20901.0,0.00907827]
[1673733514941,0.49235945,20902.0,20901.0,0.00907827]
[1673733515201,0.87612139,20902.0,20901.0,0.00907827]
[1673733515475,0.87612139,20902.0,20901.0,0.00901509]
[1673733515724,0.87612139,20902.0,20901.0,1.07960709]
[1673733515725,0.73320571,20902.0,20901.0,1.07960709]
[1673733515983,0.73320571,20902.0,20901.0,1.28948709]
[1673733516493,0.59820571,20902.0,20901.0,1.42911801]
[1673733516736,0.61320571,20902.0,20901.0,1.31448709]
[1673733516994,0.015,20902.0,20901.0,1.31448709]
[1673733517243,0.03,20902.0,20901.0,1.34148709]
[1673733518983,0.03,20902.0,20901.0,1.45568709]
[1673733519236,0.03,20902.0,20901.0,1.59731801]
[1673733519486,0.03,20902.0,20901.0,2.17952655]
[1673733520009,0.03,20902.0,20901.0,2.77952655]
[1673733520238,0.03,20902.0,20901.0,3.70117812]
[1673733520485,0.03,20902.0,20901.0,2.19731801]
[1673733520728,0.03,20902.0,20901.0,2.05568709]
[1673733522210,0.03,20902.0,20901.0,1.45568709]
[1673733522952,0.03,20902.0,20901.0,1.46418709]
[1673733523443,0.03,20902.0,20901.0,1.45568709]
[1673733532818,0.03,20902.0,20901.0,1.34198709]
[1673733534586,0.03,20902.0,20901.0,0.86354109]
[1673733535846,0.923645,20904.0,20901.0,0.86354109]
[1673733536097,0.923645,20904.0,20902.0,0.1144]
[1673733536362,0.944805,20904.0,20902.0,0.1144]
[1673733537620,0.944805,20904.0,20901.0,0.10601509]
[1673733537882,0.478394,20904.0,20901.0,0.10601509]
[1673733538132,0.47835,20906.0,20902.0,0.209867]
[1673733538383,0.478326,20907.0,20903.0,0.19072595]
[1673733538641,0.499459,20908.0,20904.0,0.40056895]
[1673733538893,0.97666069,20908.0,20905.0,0.19072595]
[1673733539655,0.478299,20908.0,20902.0,0.59453408]
[1673733539904,0.485299,20908.0,20904.0,0.006]
[1673733540166,0.485299,20908.0,20904.0,0.19672595]
[1673733540914,0.3,20907.0,20905.0,0.01]
[1673733541160,0.30011674,20907.0,20902.0,0.592822]
[1673733541409,0.30011674,20907.0,20904.0,0.028]
[1673733541662,0.30011674,20907.0,20902.0,0.592822]
[1673733541910,0.77842674,20907.0,20902.0,0.592822]
[1673733542155,0.77831,20907.0,20902.0,0.78354795]
[1673733542404,1.256618,20907.0,20902.0,0.78354795]
[1673733542654,1.256618,20907.0,20904.0,0.028]
[1673733542916,0.47831,20907.0,20904.0,0.19072595]
[1673733543398,0.47831,20907.0,20903.0,0.478396]
[1673733544657,0.47831,20907.0,20903.0,0.577396]
[1673733544902,0.956618,20907.0,20903.0,0.577396]
[1673733548644,0.3,20906.0,20903.0,0.577396]
[1673733548892,0.956692,20906.0,20903.0,0.577396]
[1673733549913,0.478298,20908.0,20903.0,1.534196]
[1673733550167,0.478251,20910.0,20904.0,0.29072595]
[1673733550472,0.1248909,20911.0,20905.0,1.35722695]
[1673733550731,0.0115909,20911.0,20906.0,0.19072595]
[1673733550989,0.0115909,20911.0,20907.0,1.35712295]
[1673733551224,0.0115909,20911.0,20908.0,0.19072595]
[1673733551497,0.0115909,20911.0,20908.0,0.66899795]
[1673733551748,0.0185909,20911.0,20908.0,0.66899795]
[1673733552008,0.0185909,20911.0,20908.0,0.478272]
[1673733552257,0.0185909,20911.0,20908.0,0.956557]
[1673733552512,0.0185909,20911.0,20909.0,0.209778]
[1673733552761,0.0115909,20911.0,20909.0,0.478255]
[1673733553014,0.0185909,20911.0,20910.0,0.209765]
[1673733553526,0.0185909,20911.0,20909.0,0.956497]
[1673733553785,0.0115909,20911.0,20909.0,0.956497]
[1673733554040,0.0185909,20911.0,20910.0,0.220764]
[1673733554302,0.0115909,20911.0,20909.0,0.956497]
[1673733554560,0.0185909,20911.0,20909.0,0.967499]
[1673733554842,0.0115909,20911.0,20910.0,0.209765]
[1673733555328,0.0115909,20911.0,20909.0,0.956497]
[1673733555579,0.0115909,20911.0,20910.0,0.011]
[1673733555829,0.0185909,20911.0,20910.0,0.220764]
[1673733556077,0.0185909,20911.0,20910.0,0.011]
[1673733558885,0.0185909,20911.0,20910.0,0.01089769]
[1673733559992,0.0185909,20911.0,20910.0,0.48913769]
[1673733560163,0.0185909,20911.0,20910.0,0.69890169]
[1673733560660,0.0185909,20911.0,20910.0,1.17714169]
[1673733561668,0.0115909,20911.0,20910.0,1.166244]
[1673733561921,0.0185909,20911.0,20910.0,1.166244]
[1673733562391,0.01116664,20913.0,20910.0,1.166244]
[1673733562699,0.01116664,20913.0,20911.0,0.209751]
[1673733562997,0.01116664,20913.0,20910.0,0.956458]
[1673733563242,0.01116664,20913.0,20910.0,0.956442]
[1673733563495,0.01116664,20913.0,20910.0,0.987442]
[1673733563764,0.01116664,20913.0,20910.0,0.956442]
[1673733563765,0.48934364,20913.0,20910.0,0.956442]
[1673733564003,0.48934364,20913.0,20911.0,0.031]
[1673733564806,0.48934364,20913.0,20910.0,0.956455]
[1673733565120,0.48934364,20913.0,20910.0,1.058455]
[1673733565307,0.48934364,20913.0,20910.0,0.956455]
[1673733565521,0.48934364,20913.0,20911.0,0.031]
[1673733565762,0.48934364,20913.0,20910.0,0.956451]
[1673733566025,0.00011674,20912.0,20910.0,0.102]
[1673733566275,0.478217,20911.0,20910.0,0.102]
[1673733566773,1.434651,20911.0,20910.0,0.102]
[1673733567025,1.734651,20911.0,20910.0,0.102]
[1673733567762,1.734651,20911.0,20910.0,0.105]
[1673733568005,2.054463,20911.0,20905.0,1.72073408]
[1673733568256,2.054463,20911.0,20905.0,1.2406]
[1673733568257,0.3,20910.0,20905.0,1.2406]
[1673733568498,1.434819,20909.0,20905.0,1.2406]
[1673733568743,1.434819,20909.0,20905.0,0.773]
[1673733568991,0.00011674,20908.0,20906.0,0.209814]
[1673733569252,0.00011674,20908.0,20905.0,0.14]
[1673733569253,0.956616,20907.0,20905.0,0.14]
[1673733569503,0.956616,20907.0,20905.0,6e-05]
[1673733569766,0.956616,20907.0,20905.0,0.14006]
[1673733570793,0.956616,20907.0,20906.0,0.14]
[1673733571033,0.956616,20907.0,20905.0,6e-05]
[1673733571277,0.958616,20907.0,20905.0,0.13906]
[1673733571516,0.958616,20907.0,20906.0,0.209814]
[1673733571764,0.959616,20907.0,20906.0,0.117]
[1673733572269,0.956616,20907.0,20905.0,6e-05]
[1673733572513,0.956616,20907.0,20905.0,0.04406]
[1673733572764,0.956616,20907.0,20906.0,0.209816]
[1673733573303,0.478308,20907.0,20905.0,0.03906]
[1673733573572,0.47842474,20907.0,20905.0,0.03906]
[1673733573831,0.47842474,20907.0,20906.0,0.209816]
[1673733574051,0.464138,20907.0,20906.0,0.209816]
[1673733574270,0.464138,20907.0,20903.0,0.478382]
[1673733574541,0.464138,20907.0,20905.0,0.041]
[1673733574783,0.438138,20907.0,20903.0,0.956769]
[1673733575036,0.464138,20907.0,20904.0,0.209838]
[1673733575311,0.438138,20907.0,20903.0,0.956765]
[1673733575578,0.438138,20907.0,20905.0,0.041]
[1673733576071,0.438138,20907.0,20906.0,0.209817]
[1673733576320,0.438138,20907.0,20903.0,0.578381]
[1673733576556,0.440138,20907.0,20904.0,0.803213]
[1673733576801,0.438138,20907.0,20904.0,0.478376]
[1673733577059,0.464138,20907.0,20905.0,0.209829]
[1673733577304,0.464138,20907.0,20904.0,0.478376]
[1673733577555,0.464138,20907.0,20905.0,0.209827]
[1673733577798,0.440138,20907.0,20904.0,1.071741]
[1673733578050,0.002,20907.0,20905.0,0.209827]
[1673733578281,0.002,20907.0,20904.0,1.071741]
[1673733578529,0.002,20907.0,20905.0,1.166523]
[1673733578820,0.002,20907.0,20905.0,0.956696]
[1673733579036,0.002,20907.0,20906.0,0.209817]
[1673733579592,0.1144,20909.0,20906.0,1.166479]
[1673733579860,0.1144,20909.0,20906.0,0.956662]
[1673733580316,0.026,20907.0,20906.0,0.956662]
[1673733580565,0.026,20907.0,20906.0,1.166475]
[1673733580819,0.1144,20909.0,20906.0,1.166475]
[1673733581072,0.1404,20909.0,20906.0,0.956662]
[1673733581582,0.026,20907.0,20906.0,0.956662]
[1673733582077,0.026,20907.0,20906.0,1.166475]
[1673733582563,0.1404,20909.0,20906.0,1.166475]
[1673733582818,0.1144,20909.0,20906.0,0.956662]
[1673733583071,0.026,20907.0,20906.0,0.956662]
[1673733583319,0.026,20907.0,20906.0,1.166475]
[1673733584314,1.070936,20909.0,20906.0,1.166475]
[1673733584571,0.026,20907.0,20906.0,0.956662]
[1673733584831,0.026,20907.0,20906.0,0.478331]
[1673733585135,0.026,20907.0,20906.0,0.688144]
[1673733585349,0.956549,20909.0,20906.0,0.688144]
[1673733585607,0.00011674,20908.0,20906.0,0.478331]
[1673733585859,0.956552,20909.0,20906.0,0.478331]
[1673733586127,0.956538,20909.0,20906.0,0.478331]
[1673733586635,0.026,20908.0,20906.0,0.478331]
[1673733587160,0.026,20908.0,20907.0,0.209803]
[1673733587407,0.982546,20909.0,20906.0,0.478331]
[1673733587653,0.504273,20909.0,20906.0,0.478331]
[1673733588411,0.504273,20909.0,20907.0,0.209803]
[1673733588671,0.026,20908.0,20906.0,0.478331]
[1673733589174,0.026,20908.0,20907.0,0.209802]
[1673733589437,0.478273,20909.0,20907.0,0.209802]
[1673733589675,0.026,20908.0,20906.0,0.478331]
[1673733589925,1.09958642,20909.0,20905.0,0.478342]
[1673733590284,0.506288,20908.0,20907.0,0.006]
[1673733590429,0.478288,20908.0,20905.0,0.478343]
[1673733590705,0.026,20908.0,20905.0,0.956666]
[1673733590946,0.026,20908.0,20906.0,0.209812]
[1673733591201,0.026,20908.0,20906.0,0.478329]
[1673733591415,0.026,20908.0,20907.0,0.209804]
[1673733591688,0.478274,20909.0,20906.0,0.478329]
[1673733592445,0.026,20908.0,20906.0,0.478329]
[1673733592703,0.478274,20909.0,20906.0,0.478329]
[1673733592946,0.504274,20909.0,20906.0,0.478329]
[1673733594144,0.026,20909.0,20907.0,0.209803]
[1673733594398,0.026,20909.0,20906.0,0.19072595]
[1673733594652,0.026,20909.0,20908.0,0.95657]
[1673733595151,0.14291568,20912.0,20908.0,1.16636]
[1673733595393,0.14291568,20912.0,20909.0,0.19072595]
[1673733595637,0.36852609,20913.0,20910.0,0.688005]
[1673733595948,0.00011674,20912.0,20910.0,0.66896595]
[1673733596194,0.00011674,20912.0,20910.0,0.47824]
[1673733596449,0.02711674,20912.0,20910.0,0.47824]
[1673733596697,0.15408232,20913.0,20910.0,0.47824]
[1673733596959,0.18108232,20913.0,20910.0,0.48924]
[1673733597715,0.65925432,20913.0,20910.0,0.48924]
[1673733597965,0.63225432,20913.0,20910.0,0.47824]
[1673733598213,0.026,20912.0,20910.0,0.48924]
[1673733598716,0.026,20912.0,20910.0,0.022]
[1673733599206,0.326,20912.0,20910.0,0.022]
[1673733599449,0.11467674,20911.0,20910.0,0.022]
[1673733599698,0.59289374,20911.0,20908.0,0.478266]
[1673733599949,0.11456,20911.0,20908.0,0.478266]
[1673733600194,0.11456,20911.0,20909.0,0.209772]
[1673733600444,0.14291568,20912.0,20906.0,0.63365792]
[1673733600713,0.14291568,20911.0,20905.0,0.22857126]
[1673733600963,1.57756768,20911.0,20905.0,0.40583929]
[1673733601208,1.57756768,20911.0,20905.0,0.88417729]
[1673733601462,1.79201145,20911.0,20905.0,0.66906395]
[1673733601764,0.3,20910.0,20905.0,0.66841395]
[1673733602041,0.956544,20909.0,20905.0,0.70841395]
[1673733602275,0.956544,20909.0,20905.0,0.518338]
[1673733602538,0.00011674,20908.0,20905.0,0.518338]
[1673733602867,0.956553,20909.0,20905.0,0.518338]
[1673733603331,0.478274,20909.0,20905.0,1.18719295]
[1673733603643,0.956496,20910.0,20905.0,1.40230629]
[1673733603883,0.956495,20910.0,20905.0,1.36230629]
[1673733604145,1.09941068,20910.0,20905.0,1.18719295]
[1673733604654,1.09941068,20910.0,20905.0,1.14719295]
[1673733604879,1.09941068,20910.0,20905.0,1.18719295]
[1673733605123,1.09941068,20910.0,20905.0,1.40230629]
[1673733605653,1.09941068,20910.0,20905.0,1.18719295]
[1673733606154,1.31385445,20910.0,20905.0,1.18719295]
[1673733606397,0.62115568,20910.0,20905.0,2.16747591]
[1673733606605,0.83559645,20911.0,20905.0,2.16747591]
[1673733606860,1.31382845,20911.0,20906.0,0.40583929]
[1673733607119,0.62114768,20911.0,20907.0,0.956602]
[1673733607359,0.62114768,20911.0,20907.0,1.14732795]
[1673733607609,0.00011674,20910.0,20907.0,1.14732795]
[1673733607856,0.62114768,20911.0,20907.0,0.956602]
[1673733608107,0.62114768,20911.0,20907.0,1.14732795]
[1673733608356,0.64714768,20911.0,20907.0,0.962602]
[1673733608612,0.00011674,20910.0,20907.0,1.15332795]
[1673733608863,0.00011674,20910.0,20907.0,0.962602]
[1673733609111,0.64714768,20911.0,20907.0,0.962602]
[1673733609365,0.64714768,20911.0,20907.0,1.15332795]
[1673733609578,0.00011674,20910.0,20907.0,0.956602]
[1673733609865,0.02611674,20910.0,20907.0,0.962602]
[1673733610120,0.00011674,20910.0,20907.0,0.956602]
[1673733610365,0.00011674,20910.0,20907.0,0.962602]
[1673733610614,0.00011674,20910.0,20907.0,0.484297]
[1673733610867,0.00011674,20910.0,20907.0,0.478297]
[1673733611120,0.026,20910.0,20907.0,0.6275492]
[1673733612397,0.026,20910.0,20907.0,0.962605]
[1673733612651,0.026,20910.0,20907.0,1.1058572]
[1673733613467,0.026,20910.0,20908.0,0.00050208]
[1673733614189,0.026,20910.0,20908.0,0.47878708]
[1673733614700,0.026,20910.0,20908.0,0.95707208]
[1673733615198,0.478239,20911.0,20908.0,0.95707208]
[1673733615438,0.026,20910.0,20908.0,0.96707208]
[1673733618709,0.02611674,20910.0,20908.0,0.96707208]
[1673733618922,0.026,20910.0,20908.0,0.96707208]
[1673733620184,0.026,20910.0,20908.0,1.11032428]
[1673733620438,0.56483841,20909.0,20908.0,1.11032428]
[1673733620970,0.026,20910.0,20908.0,1.58860928]
[1673733621242,0.1144,20912.0,20908.0,1.79372262]
[1673733621483,0.01116664,20913.0,20910.0,1.6914572]
[1673733621766,0.01116664,20913.0,20910.0,1.88218315]
[1673733622504,0.01116664,20913.0,20912.0,0.1138]
[1673733622750,0.01116664,20913.0,20912.0,1.070188]
[1673733623236,0.01316664,20913.0,20912.0,1.070188]
[1673733623725,0.01316664,20913.0,20912.0,1.183488]
[1673733624223,0.01116664,20913.0,20912.0,1.222488]
[1673733624939,0.01116664,20913.0,20912.0,0.4051]
[1673733624940,0.01316664,20913.0,20912.0,0.4051]
[1673733625195,0.01316664,20913.0,20912.0,0.40560198]
[1673733627153,0.45990784,20915.0,20912.0,0.22760198]
[1673733627406,0.45990784,20915.0,20912.0,0.11380198]
[1673733627647,0.002,20913.0,20912.0,0.25280198]
[1673733628217,0.478148,20914.0,20912.0,0.11380198]
[1673733628721,0.478148,20914.0,20912.0,0.25280198]
[1673733628976,0.478148,20914.0,20912.0,0.11380198]
[1673733629226,0.002,20913.0,20912.0,0.25280198]
[1673733630748,0.478161,20914.0,20912.0,0.11380198]
[1673733631003,0.958325,20914.0,20912.0,0.25280198]
[1673733631245,0.956325,20914.0,20912.0,0.11380198]
[1673733631491,0.00211674,20913.0,20912.0,0.139]
[1673733631737,0.956324,20914.0,20909.0,0.7354982]
[1673733632002,0.958324,20914.0,20912.0,0.139]
[1673733632239,0.480165,20914.0,20909.0,0.2572522]
[1673733632492,0.002,20913.0,20912.0,0.139]
[1673733633245,0.002,20913.0,20912.0,0.13950198]
[1673733633495,0.302,20914.0,20912.0,0.13950198]
[1673733633740,1.070676,20915.0,20912.0,0.00050198]
[1673733633995,1.070676,20915.0,20912.0,0.13950198]
[1673733634253,0.002,20913.0,20912.0,0.00050198]
[1673733634503,0.002,20913.0,20912.0,0.61769298]
[1673733634760,0.592545,20915.0,20911.0,0.478203]
[1673733635009,0.592539,20915.0,20911.0,0.66892595]
[1673733635269,0.594539,20915.0,20912.0,0.139]
[1673733635527,1.072682,20915.0,20912.0,0.139]
[1673733635792,0.59465974,20915.0,20912.0,1.095384]
[1673733636293,0.59465974,20915.0,20912.0,0.478194]
[1673733636294,0.59265974,20915.0,20912.0,0.478194]
[1673733636514,0.73557542,20915.0,20911.0,0.478205]
[1673733636787,1.21370042,20915.0,20911.0,0.478203]
[1673733637037,1.21570042,20915.0,20912.0,0.139]
[1673733637584,0.3,20914.0,20912.0,0.139]
[1673733637830,0.956342,20913.0,20909.0,0.114]
[1673733638097,0.00011674,20912.0,20911.0,0.139]
[1673733638344,0.478194,20912.0,20911.0,0.139]
[1673733638618,0.388194,20912.0,20909.0,0.592252]
[1673733638868,0.388194,20912.0,20909.0,1.070502]
[1673733639120,0.956367,20913.0,20909.0,1.070502]
[1673733639381,0.951367,20913.0,20909.0,1.070502]
[1673733640691,0.954367,20913.0,20909.0,1.208502]
[1673733640919,0.00011674,20912.0,20909.0,1.208502]
[1673733641180,0.1143,20910.0,20909.0,0.138]
[1673733641429,1.504591,20910.0,20909.0,0.138]
[1673733641673,1.793341,20910.0,20909.0,0.138]
[1673733642208,1.793341,20910.0,20904.0,0.83672654]
[1673733642478,0.1143,20908.0,20905.0,0.1432522]
[1673733642719,0.00011674,20907.0,20904.0,0.83672654]
[1673733642972,0.1143,20908.0,20904.0,0.83672654]
[1673733643487,0.1173,20908.0,20905.0,0.139]
[1673733643775,0.00011674,20907.0,20904.0,0.83672654]
[1673733644028,0.1183,20908.0,20904.0,0.97572654]
[1673733644280,0.596587,20908.0,20904.0,0.6216132]
[1673733644527,0.596587,20908.0,20905.0,0.139]
[1673733644528,0.599587,20908.0,20905.0,0.139]
[1673733644806,0.00011674,20907.0,20905.0,0.139]
[1673733645078,1.077895,20908.0,20905.0,0.139]
[1673733645338,1.070895,20908.0,20904.0,0.6216132]
[1673733645581,1.074895,20908.0,20904.0,0.7606132]
[1673733645875,1.074895,20908.0,20904.0,0.6216132]
[1673733646124,1.077895,20908.0,20905.0,0.139]
[1673733646395,1.070895,20908.0,20904.0,0.81233915]
[1673733646645,1.074895,20908.0,20904.0,0.7606132]
[1673733647927,0.596587,20908.0,20904.0,1.2389902]
[1673733648476,0.596587,20908.0,20904.0,1.42971615]
[1673733648700,0.596587,20908.0,20904.0,1.2389902]
[1673733649222,0.00011674,20907.0,20904.0,1.2389902]
[1673733649457,0.596587,20908.0,20904.0,1.2389902]
[1673733649964,0.596587,20908.0,20904.0,1.095738]
[1673733650467,0.482287,20908.0,20904.0,1.095738]
[1673733650713,0.482287,20908.0,20904.0,1.42971615]
[1673733651485,0.482287,20908.0,20904.0,1.7173672]
[1673733652047,0.482287,20908.0,20904.0,1.574115]
[1673733653292,0.00011674,20907.0,20904.0,1.574115]
[1673733653802,0.482287,20908.0,20904.0,1.574115]
[1673733654554,0.59198474,20907.0,20904.0,1.574115]
[1673733654821,0.59198474,20907.0,20904.0,1.435115]
[1673733655073,0.59598474,20907.0,20904.0,1.574115]
[1673733655311,0.59598474,20907.0,20904.0,1.435115]
[1673733655564,0.59598474,20907.0,20904.0,1.574115]
[1673733655813,0.59198474,20907.0,20904.0,1.435115]
[1673733656065,0.59598474,20907.0,20904.0,1.574115]
[1673733656310,0.53474474,20907.0,20904.0,1.574115]
[1673733656821,0.53486148,20907.0,20904.0,1.574115]
[1673733657328,0.53474474,20907.0,20904.0,1.095738]
[1673733657833,0.00011674,20906.0,20904.0,1.095738]
[1673733658081,1.01305374,20907.0,20904.0,1.095738]
[1673733658334,0.53474474,20907.0,20904.0,1.06555415]
[1673733658610,0.004,20908.0,20907.0,0.21877615]
[1673733658859,1.34447568,20912.0,20907.0,0.21877615]
[1673733659145,0.86627568,20912.0,20908.0,0.19072595]
[1673733659377,0.86627568,20912.0,20909.0,0.19072595]
[1673733659378,0.00011674,20911.0,20909.0,0.19072595]
[1673733659634,0.00011674,20911.0,20907.0,0.21877615]
[1673733659888,0.00011674,20911.0,20907.0,0.4095021]
[1673733660158,0.00011674,20911.0,20907.0,0.21877615]
[1673733660662,0.13572,20908.0,20907.0,0.21877615]
[1673733660924,0.569031,20908.0,20907.0,0.21877615]
[1673733661173,1.96851668,20908.0,20907.0,0.28077615]
[1673733661428,1.96851668,20908.0,20907.0,0.21877615]
[1673733661429,1.825601,20908.0,20907.0,0.21877615]
[1673733661693,1.825601,20908.0,20907.0,0.28077615]
[1673733661957,1.96851668,20908.0,20907.0,0.21877615]
[1673733662209,2.01751668,20908.0,20907.0,0.22977615]
[1673733662477,1.874601,20908.0,20907.0,0.22977615]
[1673733662720,2.01751668,20908.0,20907.0,0.22977615]
[1673733664478,2.23207719,20908.0,20907.0,0.22977615]
[1673733665001,2.01763342,20908.0,20907.0,0.22977615]
[1673733665768,2.01763342,20908.0,20900.0,1.31473467]
[1673733666031,0.623383,20907.0,20900.0,1.50546062]
[1673733666272,0.478342,20906.0,20900.0,1.50546062]
[1673733666521,0.478342,20906.0,20900.0,1.17148247]
[1673733666774,0.478342,20906.0,20900.0,1.36220842]
[1673733667277,0.478342,20906.0,20900.0,1.48720842]
[1673733667540,0.478342,20906.0,20900.0,1.50546062]
[1673733667800,0.961673,20906.0,20900.0,1.63046062]
[1673733669073,0.961673,20906.0,20900.0,1.48720842]
[1673733670310,0.961673,20906.0,20901.0,0.19072595]
[1673733670565,0.961673,20906.0,20902.0,0.478418]
[1673733670813,0.00011674,20905.0,20902.0,0.66914395]
[1673733671073,0.47847874,20905.0,20902.0,0.478418]
[1673733671870,0.47847874,20905.0,20902.0,0.535418]
[1673733671871,0.48247874,20905.0,20902.0,0.535418]
[1673733672119,1.07433274,20905.0,20902.0,0.057]
[1673733674158,0.1144,20903.0,20902.0,0.057]
[1673733674406,1.280983,20903.0,20902.0,0.057]
[1673733674665,2.080543,20903.0,20902.0,0.057]
[1673733675682,2.190571,20903.0,20902.0,0.057]
[1673733675929,2.190571,20903.0,20900.0,0.21456747]
[1673733676153,0.509783,20902.0,20900.0,0.21456747]
[1673733676444,0.478446,20901.0,20900.0,0.21456747]
[1673733677207,0.478446,20901.0,20900.0,0.33956747]
[1673733677429,0.478446,20901.0,20900.0,0.21456747]